Cogmind - Beta 16 *** ADVENTURER MODE // 2025.12.23 @ 23:21:41 Player: zoefiri Result: Self-destructed Performance ------------- Evolutions (2) 1000 Regions Visited (6) 1200 Robots Destroyed (23) 115 Value Destroyed (503) 503 Prototype IDs (0) 0 Alien Tech Used (0) 0 Bonus (0) 0 TOTAL SCORE: 2818 Bonus ------- None Cogmind --------- Core Integrity 550/550 Matter 300/300 Energy 125/125 System Corruption 0% Temperature Cool (0) Movement Flying (37) Location -8/Materials Parts ------- > --- POWER (1) -------- Light Ion Engine > --- PROPULSION (4) --- Flight Unit Flight Unit > --- UTILITY (4) ------ Terrain Scan Processor Light Armor Plating > --- WEAPON (2) ------- Light Assault Rifle > --- INVENTORY (5) ---- Flight Unit Flight Unit Flight Unit Small Storage Unit Heavy Assault Rifle Peak State ------------ > --- POWER ------------ Ion Engine > --- PROPULSION ------- Flight Unit Flight Unit > --- UTILITY ---------- Terrain Scan Processor Light Armor Plating > --- WEAPON ----------- Light Assault Rifle Heavy Assault Rifle > --- INVENTORY -------- Flight Unit Small Storage Unit Plasma Cutter [Rating: 9] Favorites ----------- Power Light Ion Engine Engine Light Ion Engine Propulsion Flight Unit Flight Unit Flight Unit Utility Terrain Scan Processor Processor Terrain Scan Processor Protection Light Armor Plating Weapon Light Assault Rifle Ballistic Gun Light Assault Rifle Build | -11 -10 -9 -9 -9 -8 -8 ------- Run | Yrd Mat Mat Min Exi Min Mat Slots Evolved 4 | . . 2 . . . 2 Power . | . . . . . . . Propulsion 2 | . . . . . . 2 Utility 2 | . . 2 . . . . Weapon . | . . . . . . . Parts Attached 21 | 3 7 7 4 . . . Power 4 | 1 1 1 1 . . . Engine 4 | 1 1 1 1 . . . Core . | . . . . . . . Reactor . | . . . . . . . Propulsion 9 | . 3 3 3 . . . Treads . | . . . . . . . Leg . | . . . . . . . Wheel . | . . . . . . . Hover . | . . . . . . . Flight 9 | . 3 3 3 . . . Utility 4 | . 2 2 . . . . Device . | . . . . . . . Storage . | . . . . . . . Processor 1 | . 1 . . . . . Hackware . | . . . . . . . Protection 3 | . 1 2 . . . . Artifact . | . . . . . . . Weapon 4 | 2 1 1 . . . . Energy Gun . | . . . . . . . Energy Cannon . | . . . . . . . Ballistic Gun 4 | 2 1 1 . . . . Ballistic Cannon . | . . . . . . . Launcher . | . . . . . . . Special Weapon . | . . . . . . . Impact Weapon . | . . . . . . . Slashing Weapon . | . . . . . . . Piercing Weapon . | . . . . . . . Special Melee Weapon . | . . . . . . . Unidentified Prototypes . | . . . . . . . Parts Lost 6 | . 1 4 1 . . . Power 2 | . 1 1 . . . . Propulsion 2 | . . 1 1 . . . Utility 1 | . . 1 . . . . Weapon 1 | . . 1 . . . . Highest Loss Streak 4 | . 1 4 1 . . . To Critical Strikes . | . . . . . . . Average Backups 4 | 1 3 4 4 5 5 5 Power . | . . . . . . . Propulsion 1 | . 1 1 2 3 3 3 Utility . | . 1 1 1 1 1 1 Weapon . | . . 1 . 1 1 1 Tool/Special . | . . . . . . . Unused Backups 5 | . 1 1 1 . . 2 Power . | . . . . . . . Propulsion 3 | . 1 1 . . . 1 Utility 1 | . . . . . . 1 Weapon . | . . . . . . . Tool/Special 1 | . . . 1 . . . Average Slot Usage (%) 64 | . 59 64 69 66 66 54 Engine 9 | . 11 6 11 11 11 9 Flight 19 | . 15 19 19 22 22 18 Processor 8 | . 3 11 11 11 11 9 Protection 7 | . . 9 11 11 11 9 Ballistic Gun 18 | . 28 17 17 11 11 9 Peak Build Rating 9 | 3 8 8 9 7 7 7 Average Rating 6 | 2 4 6 8 7 7 7 On Entrance 5 | . 3 8 6 7 7 7 Avg Prop Armor Cover (%) . | . . . . . . . Naked Turns . | . . . . . . . Heaviest Build 12 | 5 8 8 12 7 7 7 Greatest Support 8 | 3 8 8 8 8 8 8 Greatest Overweight (x) 2 | 1 1 . 2 . . . Average Overweight (x) . | . . . . . . . Largest Inventory Capacity 5 | 5 5 5 5 5 5 5 Average Capacity 5 | 5 5 5 5 5 5 5 Most Carried 5 | 2 5 5 5 5 5 5 Average Carried 4 | 1 3 4 4 5 5 5 Final Capacity 5 | 5 5 5 5 5 5 5 Final Carried 5 | 2 5 5 5 5 5 5 Class Distribution -------------------- 50% | Scavenger-Mutant 49% | Mutant Dominant Class ---------------- Mutant | -10/Materials Mutant | -9/Materials Scavenger-Mutant | -9/Mines Scavenger-Mutant | -9/Exiles Scavenger-Mutant | -8/Mines Scavenger-Mutant | -8/Materials Resources | -11 -10 -9 -9 -9 -8 -8 ----------- Run | Yrd Mat Mat Min Exi Min Mat Matter Collected 571 | 80 59 323 70 . 39 . Remotely . | . . . . . . . Salvage Created 739 | . 301 368 70 . . . Parts 54 | . 23 23 8 . . . Haulers Intercepted . | . . . . . . . Recyclers Shooed . | . . . . . . . Parts Field Recycled . | . . . . . . . Retrieved Matter . | . . . . . . . Parts Self-Destructed . | . . . . . . . Prevented . | . . . . . . . Parts Restored . | . . . . . . . Kills | -11 -10 -9 -9 -9 -8 -8 ------- Run | Yrd Mat Mat Min Exi Min Mat Combat Hostiles Destroyed 21 | . 8 9 4 . . . Guns 21 | . 8 9 4 . . . Classes Destroyed 5 | . 3 2 . . . . Recycler 1 | . 1 . . . . . Operator 1 | . . 1 . . . . Swarmer 12 | . 6 2 4 . . . Grunt 4 | . 2 2 . . . . Sentry 5 | . . 5 . . . . Best Kill Streak 9 | . 9 4 8 . . . Combat Bots Only 7 | . 5 4 7 . . . Max Kills in Single Turn 2 | . 2 1 1 . . . Gunslinging 1 | . 1 . . . . . Exploded . | . . . . . . . Melee . | . . . . . . . Uniques/NPCs Destroyed . | . . . . . . . Combat | -11 -10 -9 -9 -9 -8 -8 -------- Run | Yrd Mat Mat Min Exi Min Mat Hostile Shots Fired 120 | . 32 59 29 . . . Missed 31 | . 8 17 6 . . . Hits 89 | . 24 42 23 . . . Projectile 89 | . 24 42 23 . . . Critical Strikes 6 | . . 5 1 . . . Damage Taken 733 | . 165 432 136 . . . Core 207 | . 77 94 36 . . . Absorbed by Shields . | . . . . . . . Ignored by Resistances 220 | . 51 123 46 . . . Core Remaining (%) 78 | 100 69 . . . 67 . Volleys Fired 69 | . 19 39 11 . . . Largest 2 | . 2 2 2 . . . Hottest 43 | . 40 40 43 . . . Shots Fired 121 | . 38 61 22 . . . Gun 121 | . 38 61 22 . . . Cannon . | . . . . . . . Launcher . | . . . . . . . Special . | . . . . . . . Kinetic 121 | . 38 61 22 . . . Thermal . | . . . . . . . Explosive . | . . . . . . . Electromagnetic . | . . . . . . . Robot Hit Streak 18 | . 13 18 6 . . . Robot Miss Streak 3 | . 1 2 3 . . . Penetration Max . | . . . . . . . Secondary Targets 2 | . 1 1 . . . . Max Gunslinging Chain 1 | . 1 1 . . . . Shots Hit Robots 95 | . 29 51 15 . . . Core Hits 43 | . 14 23 6 . . . Critical Kills . | . . . . . . . Critical Parts Destroyed . | . . . . . . . Critical Strikes . | . . . . . . . Melee Attacks . | . . . . . . . Impact . | . . . . . . . Slashing . | . . . . . . . Piercing . | . . . . . . . Sneak Attacks . | . . . . . . . Combat Hostiles . | . . . . . . . Follow-up Attacks . | . . . . . . . Damage Inflicted 856 | . 245 437 174 . . . Guns 856 | . 245 437 174 . . . Cannons . | . . . . . . . Explosions . | . . . . . . . Melee . | . . . . . . . Ramming . | . . . . . . . Kinetic 856 | . 245 437 174 . . . Thermal . | . . . . . . . Explosive . | . . . . . . . Electromagnetic . | . . . . . . . Impact . | . . . . . . . Slashing . | . . . . . . . Piercing . | . . . . . . . Highest Corruption . | . . . . . . . Average Corruption . | . . . . . . . Corruption Purged . | . . . . . . . Corruption Blocked . | . . . . . . . Overload Shots . | . . . . . . . Overflow Damage . | . . . . . . . Projectiles . | . . . . . . . Explosions . | . . . . . . . Melee . | . . . . . . . Knockbacks . | . . . . . . . Impact . | . . . . . . . Kinetic . | . . . . . . . Secondary . | . . . . . . . Self-Inflicted Damage . | . . . . . . . Shots . | . . . . . . . Rammed . | . . . . . . . Targets Rammed . | . . . . . . . Kicked . | . . . . . . . Crushed . | . . . . . . . Highest Temperature 32 | . 8 32 12 . . . Average Temperature 6 | . 3 9 4 . . . Received Heat Transfer 261 | . 30 231 . . . . Siege Activations . | . . . . . . . Martial Activations . | . . . . . . . Shielding Activations . | . . . . . . . Robots Disrupted . | . . . . . . . Combat Hostiles . | . . . . . . . Robots Corrupted . | . . . . . . . Combat Hostiles . | . . . . . . . Parts Fried . | . . . . . . . Impact Corruptions . | . . . . . . . Robots Melted . | . . . . . . . Combat Hostiles . | . . . . . . . Parts Melted . | . . . . . . . Heat Transferred . | . . . . . . . Parts Sabotaged . | . . . . . . . Parts Stolen . | . . . . . . . Parts Stripped . | . . . . . . . Power Chain Reactions . | . . . . . . . Alert | -11 -10 -9 -9 -9 -8 -8 ------- Run | Yrd Mat Mat Min Exi Min Mat Maximum Alert Level 1 | . . 1 . . . . Low Security (%) 96 | 100 100 90 100 . 100 100 Level 1 3 | . . 9 . . . . Level 2 . | . . . . . . . Level 3 . | . . . . . . . Level 4 . | . . . . . . . Level 5 . | . . . . . . . High Security . | . . . . . . . Max Security . | . . . . . . . Peak Influence 226 | . 145 226 140 . . . Initial 70 | . . 36 70 . . . Average 81 | . 77 105 122 . . . Influence Increases 610 | . 190 330 90 . . . Destroy 0b10 Robot/C 420 | . 160 180 80 . . . Destroy 0b10 Robot/NC 10 | . 5 5 . . . . Destroy Leader 100 | . 20 70 10 . . . Successful Hack 5 | . 5 . . . . . Partial Spotted 15 | . . 15 . . . . Lose Combat Pursuer 60 | . . 60 . . . . Influence Decreases 610 | . 90 214 196 110 . . Entered New Map 320 | . . 64 146 110 . . Time Decay 230 | . 80 110 40 . . . Lost Part 60 | . 10 40 10 . . . Squads Dispatched 2 | . . 2 . . . . Investigation 1 | . . 1 . . . . Extermination . | . . . . . . . Reinforcement 1 | . . 1 . . . . Assault . | . . . . . . . Garrison . | . . . . . . . Intercept . | . . . . . . . Searches Triggered . | . . . . . . . Construction Impeded . | . . . . . . . Haulers Reinforced . | . . . . . . . Active Scanning Responses . | . . . . . . . Cargo Convoy Interrupts . | . . . . . . . Stealth | -11 -10 -9 -9 -9 -8 -8 --------- Run | Yrd Mat Mat Min Exi Min Mat Distress Signals . | . . . . . . . Communications Jammed . | . . . . . . . Distress Signals . | . . . . . . . Times Spotted 32 | . 13 15 4 . . . Peak Tracking Total 8 | . 6 8 4 . . . Tactical Retreats 3 | . . 3 . . . . Traps | -11 -10 -9 -9 -9 -8 -8 ------- Run | Yrd Mat Mat Min Exi Min Mat Traps Triggered . | . . . . . . . Indirectly . | . . . . . . . Trap Hack Attempts . | . . . . . . . Triggered . | . . . . . . . Disarmed . | . . . . . . . Reprogrammed . | . . . . . . . Reused . | . . . . . . . Traps Extracted . | . . . . . . . Installed . | . . . . . . . Triggered . | . . . . . . . Machines | -11 -10 -9 -9 -9 -8 -8 ---------- Run | Yrd Mat Mat Min Exi Min Mat Machines Disabled . | . . . . . . . Max in Single Turn . | . . . . . . . Machines Repaired . | . . . . . . . Machines Dismantled . | . . . . . . . Machines Sabotaged . | . . . . . . . Overloaded Fab Kills . | . . . . . . . Hacking | -11 -10 -9 -9 -9 -8 -8 --------- Run | Yrd Mat Mat Min Exi Min Mat Machines Accessed 3 | . 1 1 . 1 . . Terminals 2 | . 1 1 . . . . Fabricators . | . . . . . . . Repair Stations . | . . . . . . . Recycling Units . | . . . . . . . Scanalyzers . | . . . . . . . Garrison Access . | . . . . . . . Total Hacks 29 | . 3 3 . 23 . . Successful 25 | . 2 . . 23 . . Failed 4 | . 1 3 . . . . Catastrophic 1 | . . 1 . . . . Database Lockouts . | . . . . . . . Manual 7 | . 4 3 . . . . Terminals 6 | . 3 3 . . . . Fabricators . | . . . . . . . Repair Stations . | . . . . . . . Recycling Units . | . . . . . . . Scanalyzers . | . . . . . . . Garrison Access . | . . . . . . . Terminal Hacks 25 | . 2 . . 23 . . Record 23 | . . . . 23 . . Robot Analysis 1 | . 1 . . . . . Locate Traps 1 | . 1 . . . . . Fabricator Hacks . | . . . . . . . Repair Station Hacks . | . . . . . . . Recycling Unit Hacks . | . . . . . . . Scanalyzer . | . . . . . . . Garrison Access Hacks . | . . . . . . . Unauthorized Hacks . | . . . . . . . Terminals . | . . . . . . . Fabricators . | . . . . . . . Repair Stations . | . . . . . . . Recycling Units . | . . . . . . . Scanalyzers . | . . . . . . . Garrison Access . | . . . . . . . Data Cores Recovered 1 | . . 1 . . . . Used 1 | . . 1 . . . . Hacking Detections 2 | . 1 1 . . . . Full Trace Events 1 | . . 1 . . . . Feedback Events . | . . . . . . . Feedback Blocked . | . . . . . . . Robot Schematics Acquired . | . . . . . . . Robots Built . | . . . . . . . Authchips . | . . . . . . . Time . | . . . . . . . Total Robot Build Rating . | . . . . . . . Part Schematics Acquired . | . . . . . . . Parts Built . | . . . . . . . Authchips . | . . . . . . . Time . | . . . . . . . Total Part Build Rating . | . . . . . . . Part Studies Acquired . | . . . . . . . Parts Repaired . | . . . . . . . Time . | . . . . . . . Parts Recycled . | . . . . . . . Recycled Matter . | . . . . . . . Retrieved Matter . | . . . . . . . Retrieved Components . | . . . . . . . Parts Scanalyzed . | . . . . . . . Part Schematics Acquired . | . . . . . . . Parts Damaged . | . . . . . . . Bothacking | -11 -10 -9 -9 -9 -8 -8 ------------ Run | Yrd Mat Mat Min Exi Min Mat Used RIF Installer . | . . . . . . . Robots Hacked . | . . . . . . . Non-combat . | . . . . . . . Combat . | . . . . . . . Robot Hacks Applied . | . . . . . . . Relay Couplers Released . | . . . . . . . Fabnet Peak Effective % . | . . . . . . . Robots Rewired . | . . . . . . . Allies Hacked . | . . . . . . . Hacks Repelled . | . . . . . . . Allies | -11 -10 -9 -9 -9 -8 -8 -------- Run | Yrd Mat Mat Min Exi Min Mat Total Allies . | . . . . . . . Largest Group . | . . . . . . . Highest-Rated Group . | . . . . . . . Highest-Rated Ally . | . . . . . . . Total Orders . | . . . . . . . Ally Attacks . | . . . . . . . Total Damage . | . . . . . . . Kills . | . . . . . . . Allies Corrupted . | . . . . . . . Allies Melted . | . . . . . . . Intel | -11 -10 -9 -9 -9 -8 -8 ------- Run | Yrd Mat Mat Min Exi Min Mat Active Infowar (turns) . | . . . . . . . Robot Analysis Total 1 | . 1 . . . . . Derelict Logs Recovered . | . . . . . . . Drone Launches . | . . . . . . . Drone Recoveries . | . . . . . . . Exploration | -11 -10 -9 -9 -9 -8 -8 ------------- Run | Yrd Mat Mat Min Exi Min Mat Turns Passed 698 | 33 186 231 84 95 68 1 Spaces Moved 1092 | 32 220 314 85 257 183 1 Core 74 | 32 42 . . . . . Treads . | . . . . . . . Legs . | . . . . . . . Wheels . | . . . . . . . Hover . | . . . . . . . Flight 1018 | . 178 314 85 257 183 1 Fastest Speed 37 | 50 37 37 37 37 37 37 Average Speed 41 | 85 49 37 49 37 37 37 Slowest Speed 200 | 100 120 40 200 37 37 37 Overloaded Moves . | . . . . . . . Propulsion Burnouts . | . . . . . . . Robots Hopped 3 | . 2 . . . 1 . Potential Cave-ins . | . . . . . . . Cave-ins Triggered . | . . . . . . . Exploration Rate (%) 36 | 4 51 31 18 63 50 . Regions Visited 6 Branch Regions 3 Pre-discovered Areas 1 | . . . . 1 . . Known Exits Taken . | . . . . . . . Unknown Exits Taken 6 | 1 1 1 1 1 1 . Scrap Searched 1 | . . . . . 1 . Spaces Dug . | . . . . . . . Terrain Destroyed . | . . . . . . . Melee . | . . . . . . . Projectile . | . . . . . . . AOE . | . . . . . . . Terrain Rammed . | . . . . . . . Walls Destroyed . | . . . . . . . Machines Disabled . | . . . . . . . Actions | -11 -10 -9 -9 -9 -8 -8 --------- Run | Yrd Mat Mat Min Exi Min Mat Total 1223 | 36 263 378 108 256 181 1 Wait 24 | . 11 13 . . . . Move 1080 | 31 215 313 84 256 180 1 Hop 3 | . 2 . . . 1 . Pick Up 8 | 2 4 1 1 . . . Fast Attach 16 | 3 7 4 2 . . . Attach 4 | . . 1 3 . . . Detach 2 | . . . 2 . . . Swap 5 | . 1 2 2 . . . Drop 12 | . 4 5 3 . . . Fire 69 | . 19 39 11 . . . Melee . | . . . . . . . Ram . | . . . . . . . Kick . | . . . . . . . Crush . | . . . . . . . Escape Stasis . | . . . . . . . Rewire . | . . . . . . . Trap . | . . . . . . . Miscellaneous . | . . . . . . . Route ------- -11/Scrapyard -10/Materials (discovered 2 exits: *Mat / [*Min]) -9/Materials (discovered 3 exits: [*Mat] / [*Min] / [*Sto]) -9/Mines -9/Exiles -8/Mines -8/Materials History --------- Turn | Location | Event 16 | -11/Scrapyard | Discovered new exit (range 15) 34 | -11/Scrapyard | Entered Materials 65 | -10/Materials | Discovered new exit (range 12) 214 | -10/Materials | Discovered new exit (range 15) 220 | -10/Materials | Entered another Materials area 220 | -9/Materials | Evolved 2 slots: Utility x2 313 | -9/Materials | Discovered new exit (range 3) 313 | -9/Materials | Discovered new exit (range 14) 403 | -9/Materials | Lost 4 parts (1p1n1u1w) 448 | -9/Materials | Discovered new exit (range 8) 451 | -9/Materials | Entered Mines 494 | -9/Mines | Destroyed 7 combat bots 533 | -9/Mines | Deemed a non-threat by the Exiles lab entrance 534 | -9/Mines | Discovered new exit (range 5) 535 | -9/Mines | Entered Exiles 544 | -9/Exiles | Met 8R-AWN 550 | -9/Exiles | Met EX-HEX 566 | -9/Exiles | Met EX-DEC 584 | -9/Exiles | Met EX-BIN 611 | -9/Exiles | Learned location of Zion (-6) 626 | -9/Exiles | Discovered new exit (range 14) 630 | -9/Exiles | Entered Mines 695 | -8/Mines | Discovered new exit (range 7) 698 | -8/Mines | Entered Materials 698 | -8/Materials | Evolved 2 slots: Propulsion x2 699 | -8/Materials | Self-destructed Last Messages --------------- >>Record "MSG004902-01*" PINNED - I saw a Programmer snooping around in the Mines recently, it's only a matter of time before they find us. We might need to prioritize getting out of here and finding a better environment less hostile to science. EXIT=FOUND LOCATION=UNKNOWN GOAL=ESCAPE T-07 Excavator is excavating. K-01 Serf collects debris. Searching scrap... Found Lgt. Assault Rifle. Found Authchip [Armor]. Found 62 Matter. Acquired 39 matter. EXIT=FOUND PARAMETERS=PROPULSION+2 LOCATION=UNKNOWN GOAL=ESCAPE Map ----- +----------------------------------------------------+ | ????????????????????????????????????????? | | ????????????????????????????????????????? | | ????????????????????????????????????????? | | ????????????????????????????????????????? | | ????????????????????????????????????????? | | ????????????????????????????????????????? | | ????????????????????????????????????????? | | ????????????????????????????????????????? | | ????????????????????????????????????????? | | ????????????????????????????????????????? | | ????????????????????????????????????????? | | ????????????????????????????????????????? | | ????????????????????????????????????????? | | ????????????????????????????????????????? | | ????????????????????????????????????????? | | ????????????????????????????????????????? | | ????????????????????????????????????????? | | ????????????????????????????????????????? | | ????????????????????????????????????????? | | ????????????????????????????????????????? | | ????????????????????????????????????????? | | ????????????????????????????????????????? | | ????????????????????????????????????????? | | ????????????????????####+####???????????? | | ????????????????????# #???????????? | | ????????????????????# @ #???????????? | | ????????????????????# #???????????? | | ????????????????????# #####???????????? | | ????????????????????# ????????????????? | | ????????????????????# ?????????????????? | | ????????????????????+ ??????????????????? | | ????????????????????#???????????????????? | | ????????????????????????????????????????? | | ????????????????????????????????????????? | | ????????????????????????????????????????? | | ????????????????????????????????????????? | | ????????????????????????????????????????? | | ????????????????????????????????????????? | | ????????????????????????????????????????? | | ????????????????????????????????????????? | | ????????????????????????????????????????? | | ????????????????????????????????????????? | | ????????????????????????????????????????? | | ????????????????????????????????????????? | | ????????????????????????????????????????? | | ????????????????????????????????????????? | | ????????????????????????????????????????? | | ????????????????????????????????????????? | | ????????????????????????????????????????? | | ????????????????????????????????????????? | +----------------------------------------------------+ Best States ------------- Heat Dissipation 28 Energy Generation 10 Energy Capacity 250 Matter Stores 300 Matter Capacity 300 Sight Range 16 Terrain Scan Density 85 Armor Coverage 150 Resistance: KI 20 Resistance: TH 20 Resistance: EX 20 Resistance: EM 20 Resistance: I 20 Resistance: S 20 Resistance: P 20 Evasion (%) 62 Offensive Hacking 10 Item Schematics ----------------- None Robot Schematics ------------------ None Fabricated ------------ Nothing Repaired ---------- Nothing Studied --------- None Alien Tech Used ----------------- None Achievements -------------- None Challenges ------------ None Game ------ Seed SalvagingPersonalTerminator Manual? 0 Play Time 00:18:22 Cumulative 33.6 hours Start 2025.10.21 @ 19:14:19 End 2025.12.23 @ 23:21:41 Sessions 1 Manual Loads 0 Difficulty Adventurer Special Mode None Game No. 43 Rogue 26 Adventurer 14 Explorer 3 Win Type - Total 1 Types 0/0/0/1/0/0/0/0/0/0 Lore% 10 Gallery% 32 Achievement% 18 Wizard Run 0 Options --------- Layout 1 ASCII 0 Keyboard 0 Movement Arrows Keybinds 0 Fullscreen 0 Font 28/ProggyBold Map View 50x43 Zoom Use 0% Tactical HUD 0 Map Filters NONE Filters NONE Steam 1 RUN: 315999af-b0de-4742-8b73-d7117f413f9b